fUST/lending_fUST_20251011
["ID","MTS","AMOUNT","RATE_DAILY","PERIOD"]
[390663517,1760115041896,-522.62,0.00027397,60]
[390663518,1760115041905,-522.62,0.00027397,60]
[390663519,1760115042085,-522.62,0.00027397,60]
[390663520,1760115042095,-522.62,0.00027397,60]
[390663521,1760115042105,-522.62,0.00027397,60]
[390663522,1760115042114,-522.62,0.00027397,60]
[390663523,1760115042123,-522.62,0.00027397,60]
[390663524,1760115042133,-522.62,0.00027397,60]
[390663525,1760115042142,-522.62,0.00027397,60]
[390663526,1760115042154,-522.62,0.00027397,60]
[390663527,1760115042163,-522.62,0.00027397,60]
[390663528,1760115042172,-522.62,0.00027397,60]
[390663529,1760115042181,-522.62,0.00027397,60]
[390663530,1760115042191,-522.62,0.00027397,60]
[390663531,1760115042200,-522.62,0.00027397,60]
[390663532,1760115042209,-522.62,0.00027397,60]
[390663533,1760115042218,-522.62,0.00027397,60]
[390663534,1760115042229,-520.0,0.00027397,3]
[390663535,1760115042238,-497.10404629,0.00027397,2]
[390663536,1760115042248,-1988.41618514,0.00027397,2]
[390663537,1760115042257,-4469.46248015,0.00027397,2]
[390663538,1760115042267,-500.0,0.00027397,60]
[390663539,1760115042276,-500.0,0.00027397,60]
[390663540,1760115042285,-500.0,0.00027397,60]
[390663541,1760115042295,-500.0,0.00027397,60]
[390663542,1760115042304,-500.0,0.00027397,60]
[390663543,1760115042315,-500.0,0.00027397,60]
[390663544,1760115042325,-500.0,0.00027397,60]
[390663545,1760115042334,-500.0,0.00027397,60]
[390663546,1760115042354,-500.0,0.00027397,60]
[390663547,1760115042364,-500.0,0.00027397,60]
[390663548,1760115042374,-500.0,0.00027397,60]
[390663549,1760115042384,-500.0,0.00027397,60]
[390663550,1760115042394,-500.0,0.00027397,60]
[390663551,1760115042404,-500.0,0.00027397,60]
[390663552,1760115042414,-500.0,0.00027397,60]
[390663553,1760115042423,-500.0,0.00027397,60]
[390663554,1760115042433,-500.0,0.00027397,60]
[390663555,1760115042443,-500.0,0.00027397,60]
[390663556,1760115042453,-500.0,0.00027397,60]
[390663557,1760115042463,-500.0,0.00027397,60]
[390663558,1760115042473,-500.0,0.00027397,60]
[390663559,1760115042483,-500.0,0.00027397,60]
[390663560,1760115042493,-532.91034515,0.00027397,60]
[390663561,1760115042502,-527.62,0.00027397,2]
[390663562,1760115042512,-500.0,0.00027397,30]
[390663563,1760115042522,-500.0,0.00027397,30]
[390663564,1760115042532,-500.0,0.00027397,30]
[390663565,1760115042542,-500.0,0.00027397,30]
[390663566,1760115042551,-500.0,0.00027397,30]
[390663567,1760115042563,-609.21797492,0.00027397,30]
[390663568,1760115042573,-1000.0,0.00027397,2]
[390663569,1760115042583,-764.94,0.00027397,2]
[390663570,1760115042592,-764.94,0.00027397,2]
[390663571,1760115042602,-764.94,0.00027397,2]
[390663572,1760115042612,-764.94,0.00027397,2]
[390663573,1760115042622,-764.94,0.00027397,2]
[390663574,1760115042632,-764.94,0.00027397,2]
[390663575,1760115042642,-764.94,0.00027397,2]
[390663576,1760115042651,-764.94,0.00027397,2]
[390663577,1760115042664,-764.94,0.00027397,2]
[390663578,1760115042674,-764.94,0.00027397,2]
[390663579,1760115042683,-764.94,0.00027397,2]
[390663580,1760115042693,-764.94,0.00027397,2]
[390663581,1760115042703,-764.94,0.00027397,2]
[390663582,1760115042712,-764.94,0.00027397,2]
[390663583,1760115042722,-764.94,0.00027397,2]
[390663584,1760115042732,-764.94,0.00027397,2]
[390663585,1760115042742,-764.94,0.00027397,2]
[390663587,1760115042751,-764.94,0.00027397,2]
[390663588,1760115042761,-764.94,0.00027397,2]
[390663589,1760115042771,-764.94,0.00027397,2]
[390663590,1760115042780,-764.94,0.00027397,2]
[390663591,1760115042790,-764.94,0.00027397,2]
[390663592,1760115042800,-764.94,0.00027397,2]
[390663594,1760115042810,-765.14133715,0.00027397,2]
[390663596,1760115042821,-654.46,0.00027397,60]
[390663598,1760115042836,-654.46,0.00027397,60]
[390663600,1760115042855,-654.46,0.00027397,60]
[390663602,1760115042865,-654.46,0.00027397,60]
[390663604,1760115042874,-654.46,0.00027397,60]
[390663607,1760115042884,-654.46,0.00027397,60]
[390663610,1760115042894,-654.46,0.00027397,60]
[390663613,1760115042904,-654.46,0.00027397,60]
[390663616,1760115042914,-654.46,0.00027397,60]
[390663620,1760115042925,-654.46,0.00027397,60]
[390663622,1760115042938,-654.46,0.00027397,60]
[390663624,1760115042949,-654.46,0.00027397,60]
[390663625,1760115042959,-654.46,0.00027397,60]
[390663627,1760115042969,-654.46,0.00027397,60]
[390663629,1760115042978,-654.46,0.00027397,60]
[390663631,1760115042988,-654.46,0.00027397,60]
[390663633,1760115042998,-654.46,0.00027397,60]
[390663634,1760115043007,-654.46,0.00027397,60]
[390663635,1760115043016,-654.46,0.00027397,60]
[390663636,1760115043026,-654.46,0.00027397,60]
[390663638,1760115043035,-654.46,0.00027397,60]
[390663639,1760115043045,-654.46,0.00027397,60]
[390663640,1760115043053,-654.46,0.00027397,60]
[390663641,1760115043064,-654.61897305,0.00027397,60]
[390663642,1760115043073,-500.0,0.00027397,60]
[390663643,1760115043082,-500.0,0.00027397,60]
[390663644,1760115043092,-500.0,0.00027397,60]
[390663645,1760115043102,-500.0,0.00027397,60]
[390663646,1760115043111,-500.0,0.00027397,60]
[390663647,1760115043122,-500.0,0.00027397,60]
[390663648,1760115043132,-500.0,0.00027397,60]
[390663649,1760115043141,-500.0,0.00027397,60]
[390663650,1760115043154,-500.0,0.00027397,60]
[390663651,1760115043163,-500.0,0.00027397,60]
[390663652,1760115043172,-500.0,0.00027397,60]
[390663653,1760115043182,-500.0,0.00027397,60]
[390663654,1760115043191,-500.0,0.00027397,60]
[390663655,1760115043202,-500.0,0.00027397,60]
[390663656,1760115043212,-500.0,0.00027397,60]
[390663657,1760115043222,-500.0,0.00027397,60]
[390663658,1760115043233,-500.0,0.00027397,60]
[390663659,1760115043242,-500.0,0.00027397,60]
[390663660,1760115043252,-500.0,0.00027397,60]
[390663661,1760115043261,-500.0,0.00027397,60]
[390663662,1760115043270,-500.0,0.00027397,60]
[390663663,1760115043280,-500.0,0.00027397,60]
[390663664,1760115043289,-612.05153433,0.00027397,60]
[390663665,1760115043299,-1720.55,0.00027397,60]
[390663666,1760115043308,-1720.55,0.00027397,60]
[390663667,1760115043319,-1720.55,0.00027397,60]
[390663668,1760115043328,-1720.55,0.00027397,60]
[390663669,1760115043338,-1720.55,0.00027397,60]
[390663670,1760115043348,-1720.55,0.00027397,60]
[390663671,1760115043358,-1720.55,0.00027397,60]
[390663672,1760115043368,-1720.55,0.00027397,60]
[390663673,1760115043377,-1720.55,0.00027397,60]
[390663674,1760115043387,-1720.55,0.00027397,60]
[390663675,1760115043397,-1720.55,0.00027397,60]
[390663676,1760115043407,-1720.55,0.00027397,60]
[390663677,1760115043417,-1720.55,0.00027397,60]
[390663678,1760115043426,-1720.55,0.00027397,60]
[390663679,1760115043436,-1720.55,0.00027397,60]
[390663680,1760115043445,-1720.55,0.00027397,60]
[390663681,1760115043455,-1720.55,0.00027397,60]
[390663682,1760115043464,-1720.55,0.00027397,60]
[390663683,1760115043474,-1720.55,0.00027397,60]
[390663684,1760115043484,-1720.55,0.00027397,60]
[390663685,1760115043493,-1720.55,0.00027397,60]
[390663686,1760115043503,-1720.55,0.00027397,60]
[390663688,1760115043512,-1720.55,0.00027397,60]
[390663690,1760115043522,-1720.57,0.00027397,60]
[390663691,1760115043531,-500.0,0.00027397,60]
[390663693,1760115043541,-500.0,0.00027397,60]
[390663695,1760115043550,-500.0,0.00027397,60]
[390663697,1760115043559,-500.0,0.00027397,60]
[390663699,1760115043571,-500.0,0.00027397,60]
[390663701,1760115043580,-500.0,0.00027397,60]
[390663703,1760115043590,-500.0,0.00027397,60]
[390663705,1760115043599,-500.0,0.00027397,60]
[390663707,1760115043609,-500.0,0.00027397,60]
[390663708,1760115043618,-500.0,0.00027397,60]
[390663709,1760115043628,-500.0,0.00027397,60]
[390663710,1760115043637,-500.0,0.00027397,60]
[390663711,1760115043647,-500.0,0.00027397,60]
[390663712,1760115043656,-500.0,0.00027397,60]
[390663713,1760115043666,-500.0,0.00027397,60]
[390663714,1760115043675,-500.0,0.00027397,60]
[390663715,1760115043684,-365.66976664,0.00027397,60]
[390663716,1760115043694,-1000.0,0.00027397,2]
[390663717,1760115043703,-500.0,0.00027397,2]
[390663718,1760115043712,-500.0,0.00027397,2]
[390663719,1760115043722,-528.87535178,0.00027397,2]
[390663720,1760115043731,-327.53727812,0.00027397,2]
[390663721,1760115043740,-220.97365042,0.00027397,2]
[390663722,1760115043749,-165.91026531,0.00027397,2]
[390663723,1760115043758,-186.85824031,0.000274,4]
[390663724,1760115043768,-186.85824031,0.000274,4]
[390663725,1760115043776,-186.85,0.000274,4]
[390663726,1760115043786,-163.50096027,0.000274,4]
[390663727,1760115043796,-163.50096027,0.000274,4]
[390663728,1760115043810,-163.50096027,0.000274,4]
[390663729,1760115043821,-163.50096027,0.000274,4]
[390663730,1760115043831,-163.50096027,0.000274,4]
[390663731,1760115043841,-155.3746521,0.000274,4]
[390663732,1760115043851,-155.3746521,0.000274,4]
[390663733,1760115043860,-155.3746521,0.000274,4]
[390663734,1760115043870,-155.37,0.000274,4]
[390663735,1760115043879,-161.12926884,0.000274,4]
[390663736,1760115043888,-161.12926884,0.000274,4]
[390663737,1760115043898,-161.12926884,0.000274,4]
[390663738,1760115043908,-161.12926884,0.000274,4]
[390663739,1760115043917,-161.12926884,0.000274,4]
[390663740,1760115043927,-161.12926884,0.000274,4]
[390663741,1760115043936,-27290.71796749,0.000274,7]
[390663742,1760115043946,-151.0,0.000274,10]
[390663743,1760115043955,-151.0,0.000274,19]
[390663744,1760115043967,-157.4461,0.000274,2]
[390663745,1760115043977,-157.4461,0.000274,2]
[390663746,1760115043987,-160.0,0.000274,7]
[390663747,1760115043996,-160.0,0.000274,7]
[390663748,1760115044005,-298.03512572,0.000274,7]
[390663749,1760115044014,-1041.66666667,0.000274,7]
[390663750,1760115044024,-149142.6607,0.00027444,2]
[390663751,1760115044034,-26453.1761,0.00027444,2]
[390663752,1760115044050,-800.0,0.00027444,7]
[390663753,1760115044059,-500.0,0.00027444,10]
[390663754,1760115044071,-183.75033466,0.00027467,4]
[390663755,1760115044080,-163.50096027,0.00027467,4]
[390663756,1760115044090,-500.0,0.00027473,5]
[390663757,1760115044100,-500.0,0.00027473,5]
[390663758,1760115044109,-500.0,0.00027473,5]
[390663759,1760115044118,-45437.62610815,0.000275,2]
[390663760,1760115044128,-14031.62,0.000276,2]
[390663761,1760115044138,-1856.28,0.000276,3]
[390663762,1760115044149,-6551.54,0.00027611,2]
[390663763,1760115044162,-161.12926884,0.00027627,4]
[390663764,1760115044171,-5695.01719102,0.0002785,60]
[390663765,1760115044181,-168.0,0.00027892,2]
[390663766,1760115044190,-1000.0,0.00027921,5]
[390663767,1760115044200,-1000.0,0.00027921,5]
[390663768,1760115044209,-1000.0,0.00027921,5]
[390663769,1760115044220,-810.75271216,0.00027921,5]
[390663770,1760115044231,-1000.0,0.00027921,5]
[390663771,1760115044240,-1360.0,0.00027925,2]
[390663772,1760115044249,-602.096,0.0002796,2]
[390663773,1760115044259,-204.26244666,0.00027976,2]
[390663774,1760115044268,-180.0,0.00028,2]
[390663775,1760115044277,-510.0,0.00028,30]
[390663776,1760115044287,-7071.0,0.00028,30]
[390663777,1760115044297,-4733.80965501,0.00028,2]
[390663778,1760115044306,-5099.35137177,0.00028,2]
[390663779,1760115044316,-234.32063665,0.00028,30]
[390663780,1760115044325,-160.0,0.00028,30]
[390663781,1760115044335,-298.03512572,0.00028,30]
[390663782,1760115044344,-1041.66666667,0.00028,30]
[390663783,1760115044356,-300.0,0.00028,2]
[390663784,1760115044366,-300.0,0.00028,2]
[390663785,1760115044375,-300.0,0.00028,2]
[390663786,1760115044384,-160.0,0.00028,7]
[390663787,1760115044394,-152.27003726,0.00028,5]
[390663788,1760115044403,-1000.0,0.00028021,5]
[390663789,1760115044413,-945.20505808,0.00028021,5]
[390663790,1760115044423,-602.096,0.0002806,2]
[390663791,1760115044433,-602.096,0.0002816,2]
[390663792,1760115044443,-163.50096027,0.0002819,4]
[390663793,1760115044452,-5018.72519098,0.000282,60]
[390663794,1760115044462,-171.13170931,0.00028247,15]
[390663795,1760115044471,-602.096,0.0002826,2]
[390663796,1760115044481,-161.12926884,0.0002827,4]
[390663797,1760115044490,-526497.28096039,0.0002829,8]
[390663798,1760115044510,-3564.6,0.0002829,8]
[390663799,1760115044522,-10235.3861686,0.0002829,8]
[390663800,1760115044533,-2976.8279239,0.0002829,8]
[390663801,1760115044544,-467.21602631,0.0002829,8]
[390663802,1760115044834,-3355.18073061,0.0002829,8]
[390663803,1760115044846,-2922.32301914,0.0002829,8]
[390663804,1760115044857,-331.41089426,0.0002829,8]
[390663805,1760115044877,-1678.62309563,0.0002829,8]
[390663806,1760115044889,-3691.61310203,0.0002829,8]
[390663807,1760115044900,-4595.24333039,0.0002829,8]
[390663808,1760115045150,-1682.85496127,0.0002829,8]
[390663809,1760115045163,-50979.37026516,0.0002829,8]
[390663810,1760115045179,-636.19029838,0.0002829,8]
[390663811,1760115045190,-5923.5,0.0002829,8]
[390663812,1760115045202,-2485.37922393,0.0002829,8]
[390663813,1760115045211,-602.096,0.0002836,2]
[390663814,1760115045220,-13427.51,0.0002836,8]
[390663815,1760115045230,-25600.89,0.0002836,8]
[390663816,1760115045240,-602.096,0.0002846,2]
[390663817,1760115045249,-1500.0,0.00028468,5]
[390663818,1760115045258,-1500.0,0.00028468,5]
[390663819,1760115045268,-1500.0,0.00028468,5]
[390663820,1760115045277,-1500.0,0.00028468,5]
[390663821,1760115045287,-500.48469771,0.00028473,5]
[390663822,1760115045295,-1460.0,0.00028473,2]
[390663823,1760115045304,-52292.00281918,0.000285,7]
[390663830,1760115046345,-150.0,0.0002118,2]
[390663831,1760115046356,-49229.31825394,0.000285,7]
[390663832,1760115046366,-6278.67664516,0.000285,7]
[390663843,1760115048187,500.01,0.0002876,120]
[390663844,1760115109168,372.9197026,0.0002876,120]
[390663965,1760115151071,200.0,0.00028016,120]
[390664025,1760115285817,973.078265,0.00013699,2]
[390664026,1760115328269,3000.0,0.000286,120]
[390664027,1760115330866,200.0,0.00028485,120]
[390664032,1760115450841,200.0,0.00027964,120]
[390664038,1760115646102,199.5,0.0002876,120]
[390664086,1760116232767,-500.0,0.00018,2]
[390664087,1760116232777,-160.0,0.000181,2]
[390664088,1760116232786,-200.0,0.000181,2]
[390664089,1760116232795,-14.24154845,0.00018902,2]
[390664090,1760116232806,-450.34,0.00018902,2]
[390664091,1760116232817,-356.56421561,0.00018902,2]
[390664092,1760116232832,-220.52090261,0.00018902,2]
[390664093,1760116232841,-160.0,0.00018985,2]
[390664094,1760116232850,-160.0,0.00018985,2]
[390664095,1760116232858,-298.03512572,0.00018985,2]
[390664096,1760116232867,-2124.7,0.00019,2]
[390664097,1760116232876,-1006.2,0.00019005,2]
[390664098,1760116232885,-229.0,0.00019973,3]
[390664099,1760116232894,-300.0,0.00020085,2]
[390664100,1760116232903,-866.97368336,0.00020085,2]
[390664101,1760116232914,-333.02631664,0.00020085,2]
[390664102,1760116232923,-50000.0,0.00020086,2]
[390664103,1760116232932,-1397.08945205,0.00020087,2]
[390664104,1760116232941,-973.078265,0.00020187,2]
[390664105,1760116232950,-1000.0,0.00020312,2]
[390664106,1760116232958,-179.65864857,0.00020464,2]
[390664108,1760116232968,-2012.4,0.00020733,2]
[390664110,1760116232977,-666.0,0.00021219,2]
[390664112,1760116232986,-630.0,0.00021283,2]
[390664113,1760116232995,-2159.0,0.00021283,2]
[390664115,1760116233004,-411.0,0.00021283,2]
[390664117,1760116233013,-420.0,0.00021868,2]
[390664119,1760116233022,-1397.08945205,0.00022164,2]
[390664121,1760116233031,-3018.59,0.00022461,2]
[390664122,1760116233040,-160.0,0.00023,2]
[390664123,1760116233049,-500.0,0.00023287,2]
[390664124,1760116233058,-587.0,0.0002381,2]
[390664126,1760116233068,-3000.0,0.00024,2]
[390664128,1760116233077,-8000.0,0.00024,2]
[390664129,1760116233086,-3000.0,0.0002401,2]
[390664131,1760116233096,-3000.0,0.0002402,2]
[390664133,1760116233105,-3000.0,0.0002403,2]
[390664135,1760116233114,-4979.27,0.0002403,10]
[390664137,1760116233123,-7105.65,0.0002403,10]
[390664139,1760116233133,-3000.0,0.0002404,2]
[390664141,1760116233142,-540.084,0.00024048,5]
[390664143,1760116233151,-3000.0,0.0002405,2]
[390664145,1760116233161,-3000.0,0.0002406,2]
[390664147,1760116233171,-3000.0,0.0002407,2]
[390664148,1760116233180,-1041.66666667,0.0002407,10]
[390664149,1760116233190,-160.0,0.0002407,10]
[390664150,1760116233199,-3000.0,0.0002408,2]
[390664151,1760116233209,-3000.0,0.0002409,2]
[390664152,1760116233219,-1000.0,0.00024099,2]
[390664153,1760116233228,-3000.0,0.000241,2]
[390664154,1760116233237,-3000.0,0.0002411,2]
[390664155,1760116233247,-298.03512572,0.0002411,10]
[390664156,1760116233257,-3000.0,0.0002412,2]
[390664158,1760116233268,-3000.0,0.0002413,2]
[390664159,1760116233278,-500.0,0.0002413,2]
[390664160,1760116233288,-3000.0,0.0002414,2]
[390664162,1760116233298,-3000.0,0.0002415,2]
[390664164,1760116233307,-3000.0,0.0002416,2]
[390664166,1760116233317,-500.0,0.00024169,2]
[390664167,1760116233328,-500.0,0.00024169,2]
[390664169,1760116233338,-500.0,0.00024169,2]
[390664171,1760116233347,-500.0,0.00024169,2]
[390664173,1760116233357,-403.86466342,0.00024169,2]
[390664175,1760116233366,-500.0,0.00024169,2]
[390664177,1760116233375,-500.0,0.00024169,2]
[390664179,1760116233385,-500.0,0.00024169,2]
[390664181,1760116233395,-500.9261502,0.00024169,2]
[390664183,1760116233404,-159.91944295,0.00024169,2]
[390664185,1760116233414,-248.63018841,0.00024169,2]
[390664187,1760116233424,-500.0,0.00024169,2]
[390664189,1760116233433,-601.60466894,0.00024169,2]
[390664191,1760116233442,-375.14602517,0.00024169,2]
[390664193,1760116233452,-294.22388221,0.00024169,2]
[390664195,1760116233462,-500.0,0.00024169,2]
[390664197,1760116233472,-3000.0,0.0002417,2]
[390664199,1760116233482,-93143.39134247,0.0002417,2]
[390664201,1760116233498,-1096.32,0.0002417,2]
[390664204,1760116233509,-1056.1890629,0.0002417,2]
[390664207,1760116233538,-500.0,0.00024169,2]
[390664208,1760116233548,-93042.32172617,0.0002417,2]
[390664210,1760116233557,-3000.0,0.0002418,2]
[390664211,1760116233570,-265.81,0.0002418,3]
[390664213,1760116233583,-4024.79,0.00024189,2]
[390664215,1760116233593,-3000.0,0.0002419,2]
[390664217,1760116233603,-1242.07827215,0.0002419,2]
[390664218,1760116233614,-6662.55738114,0.0002419,2]
[390664220,1760116233624,-2969.97462795,0.000242,2]
[390664222,1760116233635,-30.02537205,0.000242,2]
[390664224,1760116233645,-2336.44812248,0.0002421,2]
[390664226,1760116233656,-663.55187752,0.0002421,2]
[390664228,1760116233666,-3000.0,0.0002422,2]
[390664230,1760116233675,-200.0,0.0002422,10]
[390664232,1760116233685,-200.0,0.0002422,10]
[390664234,1760116233695,-169.384631,0.0002422,10]
[390664236,1760116233704,-925.50539861,0.0002423,2]
[390664244,1760116233886,-2074.49460139,0.0002423,2]
[390664245,1760116233895,-3000.0,0.0002424,2]
[390664246,1760116233906,-797.44,0.0002424,3]
[390664247,1760116233915,-1397.08945205,0.0002424,2]
[390664248,1760116233924,-3000.0,0.0002425,2]
[390664249,1760116233933,-3000.0,0.0002426,2]
[390664250,1760116233942,-3000.0,0.0002427,2]
[390664251,1760116233951,-3000.0,0.0002428,2]
[390664252,1760116233961,-630.0,0.00024283,2]
[390664253,1760116233970,-2159.0,0.00024283,2]
[390664254,1760116233979,-411.0,0.00024283,2]
[390664255,1760116233988,-3000.0,0.0002429,2]
[390664256,1760116233997,-3000.0,0.000243,2]
[390664257,1760116234007,-3000.0,0.0002431,2]
[390664258,1760116234017,-3000.0,0.0002432,2]
[390664259,1760116234026,-3000.0,0.0002433,2]
[390664260,1760116234035,-3000.0,0.0002434,2]
[390664261,1760116234044,-7904.63565325,0.00024343,2]
[390664262,1760116234054,-3000.0,0.0002435,2]
[390664263,1760116234064,-3000.0,0.0002436,2]
[390664264,1760116234073,-3000.0,0.0002437,2]
[390664265,1760116234086,-3000.0,0.0002438,2]
[390664266,1760116234096,-3000.0,0.0002439,2]
[390664267,1760116234105,-3000.0,0.000244,2]
[390664268,1760116234114,-3000.0,0.0002441,2]
[390664269,1760116234124,-3000.0,0.0002442,2]
[390664270,1760116234133,-3000.0,0.0002443,2]
[390664271,1760116234143,-4911.301071,0.0002444,2]
[390664272,1760116234152,-7904.63565325,0.00024495,2]
[390664273,1760116234162,-7904.63565325,0.00024648,2]
[390664274,1760116234171,-17167.43171471,0.00024772,2]
[390664275,1760116234182,-1721.61490577,0.000248,2]
[390664309,1760116238543,-2193.4165003,0.000248,2]
[390664311,1760116238558,-340.01060243,0.000248,2]
[390664313,1760116238572,-3649.59364475,0.000248,2]
[390664315,1760116238583,-7175.00378535,0.000248,2]
[390664322,1760116238653,-29166.17431445,0.000248,2]
[390664324,1760116238663,-500.0,0.00024873,2]
[390664326,1760116238673,-636.69677459,0.00024873,2]
[390664328,1760116238683,-500.0,0.00024873,2]
[390664330,1760116238692,-500.0,0.00024873,2]
[390664331,1760116238703,-500.0,0.00024873,2]
[390664333,1760116238712,-580.88296418,0.00024873,2]
[390664336,1760116238722,-500.0,0.00024873,2]
[390664338,1760116238731,-500.0,0.00024873,2]
[390664340,1760116238740,-500.0,0.00024873,2]
[390664342,1760116238750,-500.0,0.00024873,2]
[390664343,1760116238759,-500.0,0.00024873,2]
[390664344,1760116238768,-500.0,0.00024873,2]
[390664345,1760116238778,-500.0,0.00024873,2]
[390664346,1760116238788,-500.0,0.00024873,2]
[390664347,1760116238798,-500.0,0.00024873,2]
[390664348,1760116238807,-500.0,0.00024873,2]
[390664349,1760116238817,-500.27841147,0.00024873,2]
[390664350,1760116238826,-500.0,0.00024873,2]
[390664351,1760116238838,-500.0,0.00024873,2]
[390664352,1760116238847,-500.0,0.00024873,2]
[390664353,1760116238858,-500.0,0.00024873,2]
[390664354,1760116238869,-500.80546431,0.00024873,2]
[390664355,1760116238878,-500.0,0.00024873,2]
[390664356,1760116238889,-507.21746052,0.00024873,2]
[390664357,1760116238899,-500.0,0.00024873,2]
[390664358,1760116238909,-500.0,0.00024873,2]
[390664359,1760116238919,-407.56425859,0.00024873,2]
[390664360,1760116238929,-500.26426148,0.00024873,2]
[390664361,1760116238941,-500.0,0.00024873,2]
[390664362,1760116238958,-500.0,0.00024873,2]
[390664363,1760116238968,-500.0,0.00024873,2]
[390664364,1760116238978,-500.0,0.00024873,2]
[390664365,1760116238988,-500.0,0.00024873,2]
[390664366,1760116238998,-500.0,0.00024873,2]
[390664367,1760116239008,-479.85207365,0.00024873,2]
[390664368,1760116239017,-500.0,0.00024873,2]
[390664369,1760116239027,-500.0,0.00024873,2]
[390664370,1760116239036,-500.0,0.00024873,2]
[390664371,1760116239046,-440.7161878,0.00024873,2]
[390664372,1760116239056,-500.0,0.00024873,2]
[390664373,1760116239066,-500.0,0.00024873,2]
[390664374,1760116239076,-500.0,0.00024873,2]
[390664375,1760116239088,-500.78946217,0.00024873,2]
[390664376,1760116239098,-500.0,0.00024899,2]
[390664377,1760116239108,-511.01836073,0.00024899,2]
[390664378,1760116239118,-381.06082052,0.00024899,2]
[390664379,1760116239128,-618618.375533,0.000249,2]
[390664380,1760116239139,-160.0,0.00024908,2]
[390664381,1760116239149,-163.0,0.00025,7]
[390664382,1760116239159,-1000.0,0.00025,2]
[390664383,1760116239170,-6056.86301663,0.00025411,2]
[390664385,1760116239180,-500.0,0.00025421,2]
[390664386,1760116239190,-1000.0,0.00025421,2]
[390664387,1760116239200,-260.0,0.00025456,2]
[390664388,1760116239210,-942.72192429,0.00025469,2]
[390664389,1760116239220,-500.0,0.00025486,2]
[390664391,1760116239230,-531.62,0.0002555,3]
[390664393,1760116239240,-5030.99,0.00025917,2]
[390664394,1760116239251,-823.0,0.00025924,2]
[390664396,1760116239261,-1500.0,0.00025968,2]
[390664398,1760116239271,-1000.0,0.00026,2]
[390664400,1760116239281,-360.0,0.00026004,2]
[390664402,1760116239292,-500.0,0.00026027,4]
[390664404,1760116239303,-6056.86301663,0.00026199,2]
[390664406,1760116239312,-1000.0,0.00026209,2]
[390664408,1760116239322,-151.0,0.00026209,2]
[390664410,1760116239333,-1000.0,0.00026209,2]
[390664412,1760116239343,-151.24634167,0.00026209,2]
[390664414,1760116239353,-151.0,0.00026209,2]
[390664416,1760116239363,-870.24847633,0.00026209,2]
[390664418,1760116239373,-151.0,0.00026209,2]
[390664420,1760116239382,-155.12006696,0.00026209,2]
[390664422,1760116239391,-500.0,0.00026209,2]
[390664424,1760116239401,-500.0,0.00026209,2]
[390664426,1760116239411,-500.0,0.00026209,2]
[390664428,1760116239420,-500.0,0.00026209,2]
[390664430,1760116239429,-500.0,0.00026209,2]
[390664431,1760116239439,-18603.8837,0.00026209,2]
[390664433,1760116239448,-500.0,0.00026209,2]
[390664435,1760116239458,-500.0,0.00026209,2]
[390664437,1760116239467,-500.0,0.00026209,2]
[390664439,1760116239478,-500.0,0.00026209,2]
[390664441,1760116239491,-500.0,0.00026209,2]
[390664443,1760116239501,-500.0,0.00026209,2]
[390664445,1760116239511,-500.0,0.00026209,2]